[Event "Amateur Tournament (ATO)"]
[Site "Biel, Switzerland"]
[Date "2026.07.23"]
[Round "9.6"]
[White "Kalbermatter, Philipp"]
[Black "Materia, Mario"]
[Result "0-1"]
[TimeControl "90+30+30sec/move"]
[WhiteTitle "-"]
[BlackTitle "-"]
[WhiteFideId "1327976"]
[BlackFideId "651082241"]
[WhiteElo "1919"]
[BlackElo "1857"]

1. e4 {[%clk 01:30:49]} {[%emt 00:00:10]} e5 {[%clk 01:30:53]} {[%emt
00:00:08]} 2. Nf3 {[%clk 01:30:50]} {[%emt 00:00:29]} Nc6 {[%clk 01:31:19]}
{[%emt 00:00:04]} 3. d4 {[%clk 01:30:04]} {[%emt 00:01:16]} exd4 {[%clk
01:31:45]} {[%emt 00:00:05]} 4. c3 {[%clk 01:30:01]} {[%emt 00:00:32]} dxc3
{[%clk 01:32:12]} {[%emt 00:00:04]} 5. Nxc3 {[%clk 01:29:53]} {[%emt 00:00:37]}
Bb4 {[%clk 01:32:31]} {[%emt 00:00:11]} 6. Bc4 {[%clk 01:29:31]} {[%emt
00:00:51]} d6 {[%clk 01:32:43]} {[%emt 00:00:18]} 7. Qb3 {[%clk 01:22:40]}
{[%emt 00:07:20]} Qd7 {[%clk 01:30:42]} {[%emt 00:02:33]} 8. O-O {[%clk
01:20:26]} {[%emt 00:02:43]} Bc5 {[%clk 01:10:11]} {[%emt 00:21:02]} 9. Bf4
{[%clk 01:03:31]} {[%emt 00:17:24]} Na5 {[%clk 01:06:55]} {[%emt 00:03:47]} 10.
Qb5 {[%clk 01:00:35]} {[%emt 00:03:25]} Nxc4 {[%clk 01:03:05]} {[%emt
00:04:20]} 11. Qxc4 {[%clk 01:00:53]} {[%emt 00:00:11]} Ne7 {[%clk 00:38:55]}
{[%emt 00:24:41]} 12. e5 {[%clk 00:54:39]} {[%emt 00:06:43]} O-O {[%clk
00:38:24]} {[%emt 00:01:02]} 13. Na4 {[%clk 00:47:29]} {[%emt 00:07:40]} Bb6
{[%clk 00:33:18]} {[%emt 00:05:38]} 14. exd6 {[%clk 00:42:17]} {[%emt
00:05:41]} cxd6 {[%clk 00:32:32]} {[%emt 00:01:16]} 15. Nxb6 {[%clk 00:41:45]}
{[%emt 00:01:01]} axb6 {[%clk 00:32:10]} {[%emt 00:00:53]} 16. Qb4 {[%clk
00:40:26]} {[%emt 00:01:48]} Nf5 {[%clk 00:29:57]} {[%emt 00:02:43]} 17. Qxb6
{[%clk 00:32:42]} {[%emt 00:08:15]} Ra6 {[%clk 00:29:01]} {[%emt 00:01:26]} 18.
Qb3 {[%clk 00:27:28]} {[%emt 00:05:43]} b5 {[%clk 00:28:42]} {[%emt 00:00:50]}
19. Rfd1 {[%clk 00:25:45]} {[%emt 00:02:11]} Bb7 {[%clk 00:27:22]} {[%emt
00:01:52]} 20. Qd3 {[%clk 00:24:51]} {[%emt 00:01:23]} f6 {[%clk 00:17:20]}
{[%emt 00:10:33]} 21. Nd4 {[%clk 00:23:30]} {[%emt 00:01:50]} Nxd4 {[%clk
00:15:26]} {[%emt 00:02:24]} 22. Qxd4 {[%clk 00:23:52]} {[%emt 00:00:08]} Qg4
{[%clk 00:14:54]} {[%emt 00:01:03]} 23. f3 {[%clk 00:21:32]} {[%emt 00:02:49]}
Bxf3 {[%clk 00:13:12]} {[%emt 00:02:13]} 24. Rd2 {[%clk 00:21:38]} {[%emt
00:00:23]} Ra4 {[%clk 00:13:10]} {[%emt 00:00:33]} 25. b4 {[%clk 00:21:25]}
{[%emt 00:00:43]} d5 {[%clk 00:08:35]} {[%emt 00:05:05]} 26. Bd6 {[%clk
00:20:43]} {[%emt 00:01:11]} Rd8 {[%clk 00:06:27]} {[%emt 00:02:39]} 27. Qxg4
{[%clk 00:16:37]} {[%emt 00:04:35]} Bxg4 {[%clk 00:06:50]} {[%emt 00:00:07]} 28.
Rxd5 {[%clk 00:16:02]} {[%emt 00:01:05]} Ra6 {[%clk 00:06:27]} {[%emt
00:00:54]} 29. Rd4 {[%clk 00:16:01]} {[%emt 00:00:30]} Raxd6 {[%clk 00:06:50]}
{[%emt 00:00:08]} 30. Rxg4 {[%clk 00:16:23]} {[%emt 00:00:07]} Rd1+ {[%clk
00:07:16]} {[%emt 00:00:05]} 31. Rxd1 {[%clk 00:16:43]} {[%emt 00:00:10]} Rxd1+
{[%clk 00:07:44]} {[%emt 00:00:02]} 32. Kf2 {[%clk 00:17:05]} {[%emt 00:00:07]}
Rd2+ {[%clk 00:08:12]} {[%emt 00:00:03]} 33. Kf3 {[%clk 00:16:42]} {[%emt
00:00:52]} Rxa2 {[%clk 00:08:33]} {[%emt 00:00:09]} 34. Rd4 {[%clk 00:16:43]}
{[%emt 00:00:29]} Rb2 {[%clk 00:08:53]} {[%emt 00:00:10]} 35. h4 {[%clk
00:15:53]} {[%emt 00:01:20]} Kf7 {[%clk 00:08:42]} {[%emt 00:00:41]} 36. g4
{[%clk 00:14:06]} {[%emt 00:02:17]} Ke6 {[%clk 00:09:04]} {[%emt 00:00:09]} 37.
h5 {[%clk 00:05:45]} {[%emt 00:08:50]} Rb3+ {[%clk 00:07:31]} {[%emt 00:02:04]}
38. Kf2 {[%clk 00:03:31]} {[%emt 00:02:43]} g6 {[%clk 00:06:25]} {[%emt
00:01:35]} 39. hxg6 {[%clk 00:02:22]} {[%emt 00:01:39]} hxg6 {[%clk 00:06:47]}
{[%emt 00:00:08]} 40. Re4+ {[%clk 00:01:19]} {[%emt 00:01:34]} Kd5 {[%clk
00:06:57]} {[%emt 00:00:21]} 41. Re8 {[%clk 00:30:17]} {[%emt 00:02:02]} Rxb4
{[%clk 00:37:44]} {[%emt 00:00:13]} 42. g5 {[%clk 00:30:31]} {[%emt 00:00:15]}
fxg5 {[%clk 00:37:31]} {[%emt 00:00:44]} 43. Rg8 {[%clk 00:30:53]} {[%emt
00:00:08]} Rf4+ {[%clk 00:37:58]} {[%emt 00:00:03]} 44. Ke3 {[%clk 00:31:10]}
{[%emt 00:00:12]} Rf6 {[%clk 00:38:25]} {[%emt 00:00:05]} 0-1